bitfinex/quotes_BTCUSD_20241023
["timestamp","ask_amount","ask_price","bid_price","bid_amount"]
[1729667989004,0.00165,66963.0,66957.0,0.000825]
[1729667989248,0.240589,66963.0,66957.0,0.000825]
[1729667989476,0.00165,66963.0,66957.0,0.000825]
[1729667989699,0.00165,66963.0,66957.0,0.120303]
[1729667989700,0.119473,66961.0,66957.0,0.120303]
[1729667990119,0.11947,66962.0,66958.0,0.119477]
[1729667990619,0.119471,66962.0,66958.0,0.119477]
[1729667990846,0.238942,66962.0,66957.0,0.000825]
[1729667991056,0.119475,66960.0,66957.0,0.000825]
[1729667991270,0.119477,66959.0,66957.0,0.000825]
[1729667991475,0.13332411,66960.0,66957.0,0.000825]
[1729667991683,0.01385011,66959.0,66957.0,0.000825]
[1729667991914,0.238945,66961.0,66957.0,0.000825]
[1729667991915,0.13332711,66958.0,66957.0,0.000825]
[1729667992133,0.39771757,66958.0,66957.0,0.000825]
[1729667992364,0.22632039,66958.0,66957.0,0.000825]
[1729667995695,0.13332039,66958.0,66957.0,0.000825]
[1729667995873,0.13332341,66958.0,66957.0,0.000825]
[1729667996311,0.13332323,66958.0,66957.0,0.000825]
[1729667997639,0.13332611,66958.0,66957.0,0.000825]
[1729667998990,0.01384911,66958.0,66957.0,0.000825]
[1729667999244,0.119477,66958.0,66957.0,0.000825]
[1729667999454,0.01384911,66958.0,66957.0,0.000825]
[1729667999878,0.13332611,66958.0,66957.0,0.000825]
[1729668000737,0.29942479,66962.0,66957.0,0.000825]
[1729668000738,0.01384911,66960.0,66957.0,0.000825]
[1729668000963,0.01384911,66959.0,66957.0,0.120303]
[1729668001163,0.119474,66960.0,66957.0,0.000825]
[1729668001345,0.13332996,66959.0,66957.0,0.000825]
[1729668001560,0.01385396,66958.0,66957.0,0.000825]
[1729668001782,0.01385396,66961.0,66958.0,0.119477]
[1729668002014,0.00165,66963.0,66959.0,0.119475]
[1729668002015,0.01385509,66960.0,66959.0,0.119475]
[1729668002256,0.01385509,66960.0,66959.0,0.119476]
[1729668002965,0.01385509,66960.0,66959.0,0.22918251]
[1729668003173,0.01385509,66962.0,66961.0,0.119472]
[1729668003417,0.01385795,66962.0,66960.0,0.119473]
[1729668003667,0.01385795,66961.0,66959.0,0.10970651]
[1729668003929,0.00165,66963.0,66959.0,0.10970651]
[1729668004158,0.00165,66963.0,66962.0,0.11947]
[1729668004394,0.0155079,66963.0,66962.0,0.11947]
[1729668005605,0.0155079,66963.0,66962.0,0.22917651]
[1729668005829,0.00165,66963.0,66962.0,0.22917651]
[1729668006108,0.00165,66963.0,66962.0,0.11947]
[1729668006875,0.00165,66963.0,66957.0,0.000825]
[1729668006876,0.119472,66962.0,66957.0,0.000825]
[1729668007326,0.01385381,66961.0,66958.0,0.119476]
[1729668007334,0.12356032,66961.0,66957.0,0.000825]
[1729668007580,0.119477,66958.0,66957.0,0.000825]
[1729668007828,0.13333081,66958.0,66957.0,0.000825]
[1729668009811,0.20913081,66958.0,66957.0,0.000825]
[1729668010343,0.32791616,66958.0,66957.0,0.000825]
[1729668012144,0.20913081,66958.0,66957.0,0.000825]
[1729668012921,0.20912166,66958.0,66957.0,0.000825]
[1729668013693,0.37308081,66958.0,66957.0,0.000825]
[1729668013954,0.86671585,66958.0,66957.0,0.000825]
[1729668014215,0.80097153,66958.0,66957.0,0.000825]
[1729668014462,5.95493375,66958.0,66957.0,0.000825]
[1729668014736,0.90293375,66958.0,66957.0,0.000825]
[1729668015457,1.0135836,66958.0,66957.0,0.000825]
[1729668015707,0.90293375,66958.0,66957.0,0.000825]
[1729668016245,0.7539746,66958.0,66957.0,0.000825]
[1729668016512,0.65686282,66958.0,66957.0,0.000825]
[1729668018327,0.65886282,66958.0,66957.0,0.000825]
[1729668018592,0.59248081,66958.0,66957.0,0.000825]
[1729668019246,0.59048081,66958.0,66957.0,0.000825]
[1729668019500,0.63471368,66958.0,66957.0,0.000825]
[1729668019938,0.45805784,66958.0,66957.0,0.000825]
[1729668020164,0.21409869,66958.0,66957.0,0.000825]
[1729668020375,0.37305784,66958.0,66957.0,0.000825]
[1729668021282,0.36305784,66958.0,66957.0,0.000825]
[1729668022801,0.13329869,66958.0,66957.0,0.000825]
[1729668023271,0.13829869,66958.0,66957.0,0.000825]
[1729668023457,0.13330081,66958.0,66957.0,0.000825]
[1729668023692,0.13830081,66958.0,66957.0,0.000825]
[1729668024579,0.13330081,66958.0,66957.0,0.000825]
[1729668025035,0.13830081,66958.0,66957.0,0.000825]
[1729668025477,0.13330081,66958.0,66957.0,0.000825]
[1729668025712,0.119477,66958.0,66957.0,0.000825]
[1729668027522,0.13330081,66958.0,66957.0,0.000825]
[1729668027744,0.119477,66958.0,66957.0,0.000825]
[1729668027991,0.13330081,66958.0,66957.0,0.000825]
[1729668029322,0.119477,66958.0,66957.0,0.000825]
[1729668029550,0.13330081,66958.0,66957.0,0.000825]
[1729668029986,0.119477,66958.0,66957.0,0.000825]
[1729668030222,0.13330081,66958.0,66957.0,0.000825]
[1729668030679,0.13330125,66958.0,66957.0,0.000825]
[1729668031615,0.1522341,66958.0,66957.0,0.000825]
[1729668035294,0.13330125,66958.0,66957.0,0.000825]
[1729668038245,0.01382425,66958.0,66957.0,0.000825]
[1729668038462,0.00165,66963.0,66962.0,0.11947]
[1729668038679,0.00165,66963.0,66962.0,0.29092485]
[1729668038915,0.00165,66963.0,66962.0,0.537484]
[1729668039169,0.00165,66963.0,66962.0,0.6473356]
[1729668039377,0.00165,66963.0,66962.0,0.537484]
[1729668050897,0.00165,66963.0,66962.0,0.539484]
[1729668051982,0.00165,66963.0,66962.0,0.537484]
[1729668052427,0.00165,66963.0,66962.0,0.542484]
[1729668052633,0.00165,66963.0,66962.0,0.6764311]
[1729668052847,0.00165,66963.0,66962.0,0.6864311]
[1729668053073,0.00165,66963.0,66962.0,0.8696311]
[1729668053305,0.00165,66963.0,66962.0,0.8676311]
[1729668053543,0.00165,66963.0,66962.0,0.69617625]
[1729668054826,0.00165,66963.0,66962.0,0.70191985]
[1729668056760,0.00165,66963.0,66962.0,0.70274385]
[1729668056967,0.00165,66963.0,66962.0,0.70474385]
[1729668057251,0.00165,66963.0,66962.0,0.70274385]
[1729668058985,0.00165,66963.0,66962.0,0.70474385]
[1729668059637,0.00165,66963.0,66962.0,0.70274385]
[1729668060606,0.00165,66963.0,66962.0,0.56879675]
[1729668068882,0.00165,66963.0,66962.0,0.56379675]
[1729668069104,0.00165,66963.0,66962.0,0.37499675]
[1729668069314,0.00165,66963.0,66962.0,0.37999675]
[1729668070468,0.00165,66963.0,66962.0,0.37499675]
[1729668070680,0.00165,66963.0,66962.0,0.120294]
[1729668073680,0.00165,66963.0,66962.0,0.22330988]
[1729668074304,0.00165,66963.0,66962.0,0.37226903]
[1729668076641,0.00165,66963.0,66962.0,0.26925315]
[1729668079753,0.00165,66963.0,66962.0,0.120294]
[1729668079964,0.17555,66963.0,66962.0,0.000824]
[1729668080169,0.1894067,66963.0,66962.0,0.000824]
[1729668080816,0.17555,66963.0,66962.0,0.000824]
[1729668081026,0.53299346,66963.0,66962.0,0.000824]
[1729668081243,0.30886867,66963.0,66962.0,0.000824]
[1729668081464,0.43125654,66963.0,66962.0,0.000824]
[1729668082103,0.46282782,66963.0,66962.0,0.000824]
[1729668082594,0.63431353,66963.0,66962.0,0.000824]
[1729668083713,0.30886867,66963.0,66962.0,0.000824]
[1729668083932,0.09510067,66963.0,66962.0,0.000824]
[1729668084178,0.00165,66963.0,66962.0,0.120294]
[1729668084391,0.00165,66963.0,66962.0,0.29177971]
[1729668084608,0.00165,66963.0,66962.0,0.120294]
[1729668085038,0.00165,66963.0,66962.0,0.000824]
[1729668085487,0.199918,66963.0,66962.0,0.000824]
[1729668085948,0.08045,66963.0,66962.0,0.000824]
[1729668086178,0.199918,66963.0,66962.0,0.000824]
[1729668087269,0.00165,66963.0,66962.0,0.000824]
[1729668090224,0.00165,66963.0,66962.0,0.120294]
[1729668090439,0.00165,66963.0,66962.0,0.000824]
[1729668090646,0.00165,66963.0,66962.0,0.120294]
[1729668093678,0.00165,66963.0,66962.0,0.21545407]
[1729668094970,0.00165,66963.0,66962.0,0.000824]
[1729668097189,0.203918,66963.0,66962.0,0.000824]
[1729668097408,0.21775987,66963.0,66962.0,0.000824]
[1729668098259,0.09829187,66963.0,66962.0,0.000824]
[1729668098672,0.21775987,66963.0,66962.0,0.000824]
[1729668100838,0.31275987,66963.0,66962.0,0.000824]
[1729668101937,0.09829187,66963.0,66962.0,0.000824]
[1729668103049,0.08445,66963.0,66962.0,0.000824]
[1729668103292,0.09829878,66963.0,66962.0,0.000824]
[1729668103496,0.21776678,66963.0,66962.0,0.000824]
[1729668105150,0.09829878,66963.0,66962.0,0.000824]
[1729668106828,0.09830516,66963.0,66962.0,0.000824]
[1729668107463,0.01550516,66963.0,66962.0,0.000824]
[1729668109637,0.13497316,66963.0,66962.0,0.000824]
[1729668110536,0.13498269,66963.0,66962.0,0.000824]
[1729668111001,0.4164905,66963.0,66962.0,0.000824]
[1729668111218,0.30988269,66963.0,66962.0,0.000824]
[1729668112552,0.01551469,66963.0,66962.0,0.000824]
[1729668113626,0.00165,66963.0,66962.0,0.000824]
[1729668117578,0.121118,66963.0,66962.0,0.000824]
[1729668118206,0.00165,66963.0,66962.0,0.000824]
[1729668119062,0.121118,66963.0,66962.0,0.000824]
[1729668119931,0.00165,66963.0,66962.0,0.000824]
[1729668120136,0.121118,66963.0,66962.0,0.000824]
[1729668121669,0.13498834,66963.0,66962.0,0.000824]
[1729668122097,0.31488834,66963.0,66962.0,0.000824]
[1729668124499,0.31488905,66963.0,66962.0,0.000824]
[1729668128107,0.87673261,66963.0,66962.0,0.000824]
[1729668128353,0.98673261,66963.0,66962.0,0.000824]
[1729668128594,1.14283718,66963.0,66962.0,0.000824]
[1729668128813,1.01173261,66963.0,66962.0,0.000824]
[1729668129293,1.01553379,66963.0,66962.0,0.000824]
[1729668129519,1.14272254,66963.0,66962.0,0.000824]
[1729668129999,1.01917926,66963.0,66962.0,0.000824]
[1729668130243,0.88472497,66963.0,66962.0,0.000824]
[1729668130501,0.92322187,66963.0,66962.0,0.000824]
[1729668131663,1.03399951,66963.0,66962.0,0.000824]
[1729668133608,0.75946398,66963.0,66962.0,0.000824]
[1729668133856,0.92299075,66963.0,66962.0,0.000824]
[1729668134360,0.3732444,66963.0,66962.0,0.000824]
[1729668134601,0.121118,66963.0,66962.0,0.000824]
[1729668139486,0.00165,66963.0,66962.0,0.120294]
[1729668140745,0.00165,66963.0,66962.0,0.21397744]
[1729668141697,0.00165,66963.0,66962.0,0.36293659]
[1729668142800,0.00165,66963.0,66962.0,0.26833571]
[1729668145004,0.00165,66963.0,66959.0,0.23895]
[1729668145250,0.00165,66963.0,66957.0,0.176325]
[1729668145251,0.00165,66963.0,66957.0,0.000825]
[1729668145473,0.240588,66963.0,66957.0,0.000825]
[1729668145718,0.22412479,66962.0,66957.0,0.000825]
[1729668145939,0.119477,66958.0,66957.0,0.000825]
[1729668151531,0.00165,66963.0,66957.0,0.000825]
[1729668151741,0.22412479,66962.0,66957.0,0.000825]
[1729668151948,0.22412479,66962.0,66959.0,0.119475]
[1729668152160,0.12112,66963.0,66959.0,0.119475]
[1729668152382,0.119471,66962.0,66958.0,0.119476]
[1729668153427,0.20211558,66962.0,66958.0,0.119476]
[1729668153853,0.20211558,66962.0,66959.0,0.119474]
[1729668153854,0.08264458,66962.0,66959.0,0.119474]
[1729668154081,0.12112,66963.0,66959.0,0.119474]
[1729668154737,0.119471,66962.0,66958.0,0.119477]
[1729668155236,0.00165,66963.0,66960.0,0.119474]
[1729668155474,0.11947,66962.0,66958.0,0.119476]
[1729668156360,0.00165,66963.0,66962.0,0.11947]
[1729668160227,0.00165,66963.0,66962.0,0.36382915]
[1729668162678,0.00165,66963.0,66962.0,0.11947]
[1729668165940,0.00147026,66963.0,66962.0,0.11947]
[1729668167818,0.00147026,66963.0,66962.0,0.1792899]
[1729668168937,0.001692,66967.0,66966.0,0.119463]
[1729668169172,0.001692,66967.0,66966.0,0.35952215]
[1729668169404,0.001692,66967.0,66966.0,0.44302215]
[1729668180424,0.001692,66967.0,66966.0,0.55263532]
[1729668180645,0.001692,66967.0,66966.0,0.67814415]
[1729668189984,0.001692,66967.0,66966.0,0.78814415]
[1729668190418,0.001692,66967.0,66966.0,0.79014415]
[1729668190626,0.001692,66967.0,66966.0,0.78814415]
[1729668191513,0.001692,66967.0,66966.0,0.79014415]
[1729668192143,0.001692,66967.0,66966.0,0.78814415]
[1729668192362,0.001692,66967.0,66966.0,0.79014415]
[1729668192612,0.001692,66967.0,66966.0,0.96929275]
[1729668193120,0.001692,66967.0,66966.0,1.05848651]
[1729668193344,0.001692,66967.0,66966.0,1.05848231]
[1729668193555,0.001692,66967.0,66966.0,0.96929275]
[1729668195024,0.001692,66967.0,66966.0,0.75006641]
[1729668195240,0.001692,66967.0,66966.0,0.85767958]
[1729668195675,0.001692,66967.0,66966.0,0.85967958]
[1729668196098,0.001692,66967.0,66966.0,0.72506641]
[1729668196302,0.001692,66967.0,66966.0,0.89637863]
[1729668197165,0.001692,66967.0,66966.0,0.8498432]
[1729668198241,0.001692,66967.0,66966.0,0.6802432]
[1729668198649,0.001692,66967.0,66966.0,0.55473437]
[1729668200337,0.001692,66967.0,66966.0,0.55280186]
[1729668200758,0.001692,66967.0,66966.0,0.365577]
[1729668202616,0.001692,66967.0,66964.0,0.03812607]
[1729668202833,0.001692,66967.0,66965.0,0.119465]
[1729668202834,0.0918,66966.0,66965.0,0.119465]
[1729668203484,0.1734,66966.0,66965.0,0.119465]
[1729668208967,0.0816,66966.0,66965.0,0.119465]
[1729668210856,0.0816,66966.0,66965.0,0.11923795]
[1729668214124,0.0816,66966.0,66965.0,0.11901117]
[1729668214861,0.001692,66967.0,66965.0,0.11901117]
[1729668214862,0.001692,66967.0,66966.0,0.119463]
[1729668215101,0.001692,66967.0,66966.0,0.26842215]
[1729668216328,0.001692,66967.0,66966.0,0.27140851]
[1729668216595,0.001692,66967.0,66966.0,0.26842215]
[1729668217347,0.001692,66967.0,66966.0,0.27140838]
[1729668218099,0.001692,66967.0,66966.0,0.26842215]
[1729668220814,0.001692,66967.0,66966.0,0.119463]
[1729668221025,0.001692,66967.0,66966.0,0.11923652]
[1729668222394,0.001692,66967.0,66965.0,0.120288]
[1729668222705,0.001692,66967.0,66965.0,0.000824]
[1729668222946,0.119463,66966.0,66965.0,0.000824]
[1729668223667,0.199463,66966.0,66965.0,0.000824]
[1729668225605,0.56196018,66966.0,66965.0,0.000824]
[1729668225846,0.56696018,66966.0,66965.0,0.000824]
[1729668226596,0.4672788,66966.0,66965.0,0.000824]
[1729668228047,0.61623795,66966.0,66965.0,0.000824]
[1729668230654,0.61823795,66966.0,66965.0,0.000824]
[1729668231322,0.75123795,66966.0,66965.0,0.000824]
[1729668231545,0.259465,66965.0,66964.0,0.03812607]
[1729668231812,0.75725801,66965.0,66964.0,0.03812607]
[1729668232504,0.71295239,66965.0,66964.0,0.03812607]
[1729668232714,0.75725801,66965.0,66964.0,0.03812607]
[1729668233175,0.71295239,66965.0,66964.0,0.03812607]
[1729668234046,0.71095239,66965.0,66964.0,0.03812607]
[1729668236947,0.71295239,66965.0,66964.0,0.03812607]
[1729668237596,0.71095239,66965.0,66964.0,0.03812607]
[1729668238472,0.88236819,66965.0,66964.0,0.03812607]
[1729668240073,0.73333995,66965.0,66964.0,0.03812607]
[1729668241205,0.5693808,66965.0,66964.0,0.03812607]
[1729668241447,0.402965,66965.0,66964.0,0.03812607]
[1729668242391,0.397965,66965.0,66964.0,0.03812607]
[1729668242656,0.119465,66965.0,66964.0,0.03812607]
[1729668243609,0.240575,66966.0,66964.0,0.03812607]
[1729668243610,0.001648,66966.0,66964.0,0.03812607]
[1729668243832,0.001648,66966.0,66964.0,0.20954187]
[1729668244047,0.001648,66966.0,66964.0,0.03812607]
[1729668245968,0.001648,66966.0,66964.0,0.15759107]
[1729668246179,0.001648,66966.0,66964.0,0.03812607]
[1729668247059,0.001648,66965.0,66964.0,0.03812607]
[1729668247517,0.121113,66965.0,66964.0,0.03812607]
[1729668249317,0.001648,66965.0,66964.0,0.03812607]
[1729668249541,0.121113,66965.0,66964.0,0.03812607]
[1729668252593,0.001648,66965.0,66964.0,0.03812607]
[1729668254565,0.121113,66965.0,66964.0,0.03812607]
[1729668255857,0.001648,66965.0,66964.0,0.03812607]
[1729668257405,0.121113,66965.0,66964.0,0.03812607]
[1729668259752,0.001648,66965.0,66964.0,0.03812607]
[1729668266663,0.121113,66965.0,66964.0,0.03812607]
[1729668269181,0.001648,66965.0,66964.0,0.03812607]
[1729668270136,0.001648,66965.0,66964.0,0.15759307]
[1729668270798,0.001648,66965.0,66964.0,0.03812607]
[1729668272194,0.001648,66965.0,66964.0,0.15759307]
[1729668272433,0.001648,66965.0,66964.0,0.03812607]
[1729668273541,0.001648,66965.0,66964.0,0.15759307]
[1729668273761,0.001648,66965.0,66964.0,0.03812607]
[1729668275906,0.121113,66965.0,66964.0,0.03812607]
[1729668276659,0.001648,66965.0,66964.0,0.03812607]
[1729668277139,0.121113,66965.0,66964.0,0.03812607]
[1729668277679,0.200313,66965.0,66964.0,0.03812607]
[1729668277940,0.080848,66965.0,66964.0,0.03812607]
[1729668278427,0.19052085,66965.0,66964.0,0.03812607]
[1729668278660,0.200313,66965.0,66964.0,0.03812607]
[1729668279611,0.121113,66965.0,66964.0,0.03812607]
[1729668284671,0.212613,66965.0,66964.0,0.03812607]
[1729668287015,0.093148,66965.0,66964.0,0.03812607]
[1729668287235,0.121113,66965.0,66964.0,0.03812607]
[1729668300416,0.001648,66965.0,66964.0,0.03812607]
[1729668302656,0.001648,66965.0,66964.0,0.15759307]
[1729668308423,0.001648,66965.0,66964.0,0.30953861]
[1729668308686,0.001648,66965.0,66964.0,0.30655222]
[1729668312851,0.001648,66965.0,66964.0,0.03812607]
[1729668313064,0.121113,66965.0,66964.0,0.03812607]
[1729668313279,0.001648,66965.0,66964.0,0.03812607]
[1729668314128,0.13499655,66965.0,66964.0,0.03812607]
[1729668314986,0.21229655,66965.0,66964.0,0.03812607]
[1729668315436,0.25671566,66965.0,66964.0,0.03812607]
[1729668315639,0.21229655,66965.0,66964.0,0.03812607]
[1729668315923,0.27892522,66965.0,66964.0,0.03812607]
[1729668316328,0.21229655,66965.0,66964.0,0.03812607]
[1729668316539,0.35173574,66965.0,66964.0,0.03812607]
[1729668316956,0.21229655,66965.0,66964.0,0.03812607]
[1729668317855,0.13499655,66965.0,66964.0,0.03812607]
[1729668318067,0.121113,66965.0,66964.0,0.03812607]
[1729668319876,0.288913,66965.0,66964.0,0.03812607]
[1729668322129,1.07565928,66965.0,66964.0,0.03812607]
[1729668322380,1.00049364,66965.0,66964.0,0.03812607]
[1729668323287,0.99849364,66965.0,66964.0,0.03812607]
[1729668323764,0.888706,66965.0,66964.0,0.03812607]
[1729668324451,0.51945115,66965.0,66964.0,0.03812607]
[1729668324674,0.49725811,66965.0,66964.0,0.03812607]
[1729668325609,0.45287215,66965.0,66964.0,0.03812607]
[1729668325804,0.49725811,66965.0,66964.0,0.03812607]
[1729668326095,0.35167215,66965.0,66964.0,0.03812607]
[1729668326764,0.34667215,66965.0,66964.0,0.03812607]
[1729668327004,0.197713,66965.0,66964.0,0.03812607]
[1729668327222,0.121113,66965.0,66964.0,0.03812607]
[1729668327708,0.126113,66965.0,66964.0,0.03812607]
[1729668329560,0.121113,66965.0,66964.0,0.03812607]
[1729668335991,0.001648,66965.0,66964.0,0.03812607]
[1729668337388,0.001648,66965.0,66964.0,0.15759307]
[1729668337813,0.001648,66965.0,66964.0,0.03812607]
[1729668339854,0.001648,66965.0,66964.0,0.15759307]
[1729668340070,0.001648,66965.0,66964.0,0.03812607]
[1729668341215,0.121113,66965.0,66964.0,0.03812607]
[1729668346179,0.23919134,66965.0,66964.0,0.03812607]
[1729668346396,0.34699134,66965.0,66964.0,0.03812607]
[1729668346669,0.34899134,66965.0,66964.0,0.03812607]
[1729668346884,0.34699134,66965.0,66964.0,0.03812607]
[1729668347324,0.49595049,66965.0,66964.0,0.03812607]
[1729668347986,0.57245049,66965.0,66964.0,0.03812607]
[1729668349324,0.61883829,66965.0,66964.0,0.03812607]
[1729668350239,0.61683829,66965.0,66964.0,0.03812607]
[1729668350711,0.86121053,66965.0,66964.0,0.03812607]
[1729668350933,0.97218003,66965.0,66964.0,0.03812607]
[1729668352452,0.86121053,66965.0,66964.0,0.03812607]
[1729668354259,0.97205833,66965.0,66964.0,0.03812607]
[1729668355149,1.97605833,66965.0,66964.0,0.03812607]
[1729668355364,1.86521053,66965.0,66964.0,0.03812607]
[1729668356455,2.0366721,66965.0,66964.0,0.03812607]
[1729668356673,1.86521053,66965.0,66964.0,0.03812607]
[1729668357097,2.0366721,66965.0,66964.0,0.03812607]
[1729668357309,1.97604025,66965.0,66964.0,0.03812607]
[1729668357753,0.97204025,66965.0,66964.0,0.03812607]
[1729668359103,0.86121053,66965.0,66964.0,0.03812607]
[1729668362234,0.94987003,66965.0,66964.0,0.03812607]
[1729668362456,1.05760094,66965.0,66964.0,0.03812607]
[1729668362672,1.07867235,66965.0,66964.0,0.03812607]
[1729668362884,0.91491231,66965.0,66964.0,0.03812607]
[1729668363984,1.16720459,66965.0,66964.0,0.03812607]
[1729668364239,0.91491231,66965.0,66964.0,0.03812607]
[1729668364435,0.91691231,66965.0,66964.0,0.03812607]
[1729668365953,0.91491231,66965.0,66964.0,0.03812607]
[1729668366404,0.98140069,66965.0,66964.0,0.03812607]
[1729668367062,0.9814012,66965.0,66964.0,0.03812607]
[1729668368677,0.96190924,66965.0,66964.0,0.03812607]
[1729668368898,6.28634288,66965.0,66964.0,0.03812607]
[1729668369119,6.13053113,66965.0,66964.0,0.03812607]
[1729668369863,6.1539136,66965.0,66964.0,0.03812607]
[1729668371024,6.1539136,66965.0,66962.0,0.000824]
[1729668371025,0.259468,66963.0,66962.0,0.000824]
[1729668371260,0.73994597,66963.0,66962.0,0.000824]
[1729668371500,2.68094597,66963.0,66962.0,0.000824]
[1729668371755,2.65094597,66963.0,66962.0,0.000824]
[1729668375587,1.21113048,66963.0,66962.0,0.000824]
[1729668375808,1.29584851,66963.0,66962.0,0.000824]
[1729668376074,1.04364614,66963.0,66962.0,0.000824]
[1729668376311,1.20913918,66963.0,66962.0,0.000824]
[1729668376537,1.31986187,66963.0,66962.0,0.000824]
[1729668378171,1.20913918,66963.0,66962.0,0.000824]
[1729668379766,1.31986187,66963.0,66962.0,0.000824]
[1729668380454,1.36432958,66963.0,66962.0,0.000824]
[1729668381083,1.25360689,66963.0,66962.0,0.000824]
[1729668384449,0.87065203,66963.0,66962.0,0.000824]
[1729668384677,0.45089486,66963.0,66962.0,0.000824]
[1729668384919,0.53762577,66963.0,66962.0,0.000824]
[1729668385834,0.41289486,66963.0,66962.0,0.167124]
[1729668386055,0.16393571,66963.0,66962.0,0.167124]
[1729668386284,0.04446771,66963.0,66962.0,0.167124]
[1729668386481,0.16393571,66963.0,66962.0,0.167124]
[1729668388293,0.119468,66963.0,66962.0,0.167124]
[1729668389795,0.001648,66964.0,66962.0,0.167124]
[1729668390006,0.119468,66963.0,66962.0,0.167124]
[1729668390860,0.001648,66964.0,66962.0,0.167124]
[1729668391311,0.119468,66963.0,66962.0,0.167124]
[1729668391926,0.001648,66964.0,66962.0,0.167124]
[1729668392136,0.119468,66963.0,66962.0,0.167124]
[1729668392585,0.001648,66964.0,66962.0,0.167124]
[1729668392821,0.121115,66964.0,66962.0,0.167124]
[1729668393030,0.119468,66963.0,66962.0,0.167124]
[1729668393483,0.001648,66964.0,66962.0,0.167124]
[1729668393691,0.119468,66963.0,66962.0,0.167124]
[1729668396090,0.119468,66963.0,66962.0,0.000824]
[1729668399295,0.2209174,66963.0,66962.0,0.000824]
[1729668399740,0.119468,66963.0,66962.0,0.000824]
[1729668401497,0.27342715,66963.0,66962.0,0.000824]
[1729668401980,0.38712715,66963.0,66962.0,0.000824]
[1729668402200,0.65853634,66963.0,66962.0,0.000824]
[1729668402416,0.53144627,66963.0,66962.0,0.000824]
[1729668402638,0.5314358,66963.0,66962.0,0.000824]
[1729668402860,0.67676202,66963.0,66962.0,0.000824]
[1729668403334,0.67476202,66963.0,66962.0,0.000824]
[1729668403992,0.63045337,66963.0,66962.0,0.000824]
[1729668404214,0.67476202,66963.0,66962.0,0.000824]
[1729668404466,0.63045337,66963.0,66962.0,0.000824]
[1729668406226,0.48512715,66963.0,66962.0,0.000824]
[1729668408045,0.224468,66963.0,66962.0,0.000824]
[1729668408656,0.119468,66963.0,66962.0,0.000824]
[1729668409268,0.001648,66964.0,66963.0,0.1797]
[1729668413498,0.121115,66964.0,66963.0,0.1797]
[1729668414255,0.001648,66964.0,66963.0,0.1797]
[1729668414499,0.121115,66964.0,66963.0,0.1797]
[1729668416715,0.121115,66964.0,66963.0,0.0985]
[1729668416968,0.119468,66963.0,66962.0,0.000824]
[1729668426052,0.34359279,66963.0,66962.0,0.000824]
[1729668426264,0.119468,66963.0,66962.0,0.000824]
[1729668426519,0.42129279,66963.0,66962.0,0.000824]
[1729668426724,0.197168,66963.0,66962.0,0.000824]
[1729668427166,0.31318819,66963.0,66962.0,0.000824]
[1729668434175,0.53731298,66963.0,66962.0,0.000824]
[1729668434407,0.97688389,66963.0,66962.0,0.000824]
[1729668434634,0.66400675,66963.0,66962.0,0.000824]
[1729668434854,0.76400675,66963.0,66962.0,0.000824]
[1729668435079,0.85690675,66963.0,66962.0,0.000824]
[1729668435314,1.02831594,66963.0,66962.0,0.000824]
[1729668435534,0.85490675,66963.0,66962.0,0.000824]
[1729668436477,0.85690675,66963.0,66962.0,0.000824]
[1729668436691,0.86263483,66963.0,66962.0,0.000824]
[1729668437799,0.86256228,66963.0,66962.0,0.000824]
[1729668439159,0.86056228,66963.0,66962.0,0.000824]
[1729668439370,0.86256228,66963.0,66962.0,0.000824]
[1729668440255,1.03397147,66963.0,66962.0,0.000824]
[1729668440696,1.03197147,66963.0,66962.0,0.000824]
[1729668440910,1.03397147,66963.0,66962.0,0.000824]
[1729668442450,1.08206042,66963.0,66962.0,0.000824]
[1729668442665,1.08006042,66963.0,66962.0,0.000824]
[1729668443413,0.91627356,66963.0,66962.0,0.000824]
[1729668443638,1.08002296,66963.0,66962.0,0.000824]
[1729668444522,1.19091714,66963.0,66962.0,0.000824]
[1729668445412,1.19291714,66963.0,66962.0,0.000824]
[1729668445869,1.19091714,66963.0,66962.0,0.000824]
[1729668446315,1.19291714,66963.0,66962.0,0.000824]
[1729668446805,1.19091714,66963.0,66962.0,0.000824]
[1729668447301,1.190886,66963.0,66962.0,0.000824]
[1729668447547,1.192886,66963.0,66962.0,0.000824]
[1729668448223,1.08200148,66963.0,66962.0,0.000824]
[1729668448867,1.08000148,66963.0,66962.0,0.000824]
[1729668449301,0.91627356,66963.0,66962.0,0.000824]
[1729668449902,1.07998502,66963.0,66962.0,0.000824]
[1729668450142,1.08198502,66963.0,66962.0,0.000824]
[1729668451044,1.07998502,66963.0,66962.0,0.000824]
[1729668451259,0.91627356,66963.0,66962.0,0.000824]
[1729668451476,1.07998108,66963.0,66962.0,0.000824]
[1729668451683,1.08198108,66963.0,66962.0,0.000824]
[1729668452722,1.07998108,66963.0,66962.0,0.000824]
[1729668452934,1.16867635,66963.0,66962.0,0.000824]
[1729668453149,1.16867357,66963.0,66962.0,0.000824]
[1729668453387,1.07998108,66963.0,66962.0,0.000824]
[1729668454441,1.16866757,66963.0,66962.0,0.000824]
[1729668455095,1.17066757,66963.0,66962.0,0.000824]
[1729668455310,1.16866757,66963.0,66962.0,0.000824]
[1729668455954,1.05264738,66963.0,66962.0,0.000824]
[1729668456160,0.94289831,66963.0,66962.0,0.000824]
[1729668456373,1.05264738,66963.0,66962.0,0.000824]
[1729668457251,0.96396089,66963.0,66962.0,0.000824]
[1729668457460,0.76331182,66963.0,66962.0,0.000824]
[1729668457672,0.90875934,66963.0,66962.0,0.000824]
[1729668457881,1.01850841,66963.0,66962.0,0.000824]
[1729668459248,1.12937475,66963.0,66962.0,0.000824]
[1729668459967,1.13137475,66963.0,66962.0,0.000824]
[1729668460662,1.02050841,66963.0,66962.0,0.000824]
[1729668461120,1.01850841,66963.0,66962.0,0.000824]
[1729668463736,1.02050841,66963.0,66962.0,0.000824]
[1729668464801,1.0186827,66963.0,66962.0,0.000824]
[1729668468364,1.06323307,66963.0,66962.0,0.000824]
[1729668469020,1.0186827,66963.0,66962.0,0.000824]
[1729668469239,1.06324424,66963.0,66962.0,0.000824]
[1729668469372,0.95349517,66963.0,66962.0,0.000824]
[1729668469577,0.87579517,66963.0,66962.0,0.000824]